bitfinex-derivatives/quotes_ETHF0:USTF0_20260201
["timestamp","ask_amount","ask_price","bid_price","bid_amount"]
[1769918819971,0.15460867,2446.0,2445.1,0.20472]
[1769918820167,0.15460867,2446.0,2445.1,0.35995512]
[1769918820369,0.15460867,2446.0,2445.1,2.66317565]
[1769918820565,0.15803645,2446.0,2445.2,0.15523512]
[1769918820772,0.15803645,2446.0,2445.1,0.20472]
[1769918820773,0.15803645,2446.0,2445.3,2.45845565]
[1769918821172,0.15803645,2446.0,2445.1,0.35995512]
[1769918821370,0.15803645,2446.0,2444.8,0.15523512]
[1769918821574,0.15460867,2445.8,2444.5,0.36000512]
[1769918821779,0.15460867,2445.8,2444.2,0.15523512]
[1769918822777,0.15460867,2445.7,2444.2,0.15523512]
[1769918823179,0.15460867,2445.7,2444.3,0.15523512]
[1769918823575,0.15460867,2445.7,2444.1,0.36351908]
[1769918823775,0.14988141,2445.5,2444.1,0.00348396]
[1769918823974,0.35457141,2445.5,2443.5,4.30185]
[1769918824177,0.14639745,2445.4,2443.5,4.30185]
[1769918824477,0.14639745,2445.4,2443.5,4.45708512]
[1769918824679,0.14639745,2445.4,2443.6,0.15523512]
[1769918824980,0.14639745,2445.4,2443.6,0.15924785]
[1769918825982,0.14639745,2445.4,2444.0,0.15523512]
[1769918826177,0.14639745,2445.4,2444.2,0.15523512]
[1769918826380,0.14639745,2445.4,2444.4,0.15523512]
[1769918826582,0.14639745,2445.4,2444.4,2.45845565]
[1769918826779,0.14639745,2445.4,2444.5,2.30322053]
[1769918827174,0.14639745,2445.4,2444.6,2.30322053]
[1769918827375,0.14639745,2445.4,2444.5,2.45995507]
[1769918827581,0.14639745,2445.4,2444.5,0.15673454]
[1769918827881,0.14639745,2445.4,2444.2,0.15673454]
[1769918828076,0.14639745,2445.4,2444.2,2.45995507]
[1769918828273,0.14639745,2445.4,2444.3,2.30322053]
[1769918828681,0.14639745,2445.4,2444.4,2.30322053]
[1769918828884,0.14639745,2445.4,2444.3,2.30322053]
[1769918829184,0.14639745,2445.4,2444.4,4.49729512]
[1769918829381,0.14639745,2445.4,2444.4,6.95725019]
[1769918829578,0.14639745,2445.4,2444.4,2.45995507]
[1769918829987,0.14639745,2445.4,2444.4,6.95725019]
[1769918830185,0.14639745,2445.4,2444.4,2.45995507]
[1769918831091,0.14639745,2445.4,2444.5,4.71175862]
[1769918831290,0.14639745,2445.4,2444.6,4.71721833]
[1769918831489,0.14639745,2445.4,2444.4,2.45995507]
[1769918831690,0.14639745,2445.4,2444.5,4.6855761]
[1769918831886,0.14639745,2445.4,2444.6,4.6855761]
[1769918832086,0.14639745,2445.4,2444.5,2.30322053]
[1769918832287,0.14639745,2445.4,2444.6,4.5505147]
[1769918832484,0.14639745,2445.4,2444.3,4.88202532]
[1769918833186,0.14639745,2445.4,2444.2,5.03875986]
[1769918833390,0.14639745,2445.4,2444.2,0.15673454]
[1769918834189,0.14639745,2445.4,2444.3,4.88202532]
[1769918834690,0.35109745,2445.4,2444.2,4.88202532]
[1769918834886,0.2047,2445.4,2444.1,4.88202532]
[1769918835082,0.2047,2445.4,2444.2,4.88202532]
[1769918835886,0.2047,2445.4,2444.3,3.66777969]
[1769918838186,0.2047,2445.4,2444.2,3.66777969]
[1769918838896,2.401,2445.7,2444.1,4.88202532]
[1769918838897,0.20473,2445.1,2444.1,3.66777969]
[1769918839088,0.20473,2445.1,2444.2,0.16202985]
[1769918839291,2.401,2445.0,2444.2,3.82980954]
[1769918839490,2.401,2445.0,2444.1,3.66777969]
[1769918839697,2.401,2445.0,2444.2,2.30322053]
[1769918840999,2.401,2445.0,2444.3,2.30322053]
[1769918841195,2.401,2445.0,2444.2,2.30322053]
[1769918841396,2.401,2445.0,2444.0,3.66777969]
[1769918843288,2.401,2445.0,2444.1,3.66777969]
[1769918844001,2.60573,2445.0,2444.1,3.66777969]
[1769918844195,2.60573,2445.0,2444.0,3.66777969]
[1769918844395,2.60573,2445.0,2444.1,4.55797095]
[1769918844594,2.60573,2445.0,2444.0,3.66777969]
[1769918844892,2.60573,2445.0,2444.1,4.52641149]
[1769918845098,2.60573,2445.0,2444.0,2.30322053]
[1769918845298,2.60573,2445.0,2444.1,4.52692676]
[1769918845499,2.60573,2445.0,2443.9,5.97100022]
[1769918845695,2.401,2445.0,2443.6,0.00401273]
[1769918845903,0.20477,2444.5,2443.6,0.00401273]
[1769918846502,0.20478,2444.4,2443.6,0.00401273]
[1769918847203,0.20478,2444.4,2443.4,0.16385802]
[1769918848203,0.20479,2444.3,2443.4,0.00500632]
[1769918848403,6.6998,2444.2,2443.4,0.00500632]
[1769918848606,6.495,2444.1,2443.4,0.00500632]
[1769918850296,0.20484,2443.7,2442.4,0.16511842]
[1769918850497,0.20484,2443.7,2442.5,0.16511842]
[1769918850701,6.496,2443.6,2442.5,0.16511842]
[1769918851204,6.496,2443.6,2442.5,0.16934171]
[1769918851803,0.20484,2443.7,2442.5,0.16934171]
[1769918852002,6.497,2443.6,2442.5,0.16934171]
[1769918852303,0.20484,2443.7,2442.5,0.16934171]
[1769918852504,6.497,2443.6,2442.5,0.16934171]
[1769918854907,2.402,2443.5,2442.5,0.16934171]
[1769918862505,0.00421427,2444.2,2442.5,0.16934171]
[1769918862715,6.498,2444.1,2442.5,0.16934171]
[1769918863213,0.20901427,2444.2,2442.6,0.16588529]
[1769918863408,2.402,2444.1,2442.7,0.16588529]
[1769918864209,2.402,2444.1,2442.7,4.4614849]
[1769918864413,2.402,2444.1,2442.8,0.16588529]
[1769918866010,2.60681,2444.1,2442.8,0.16588529]
[1769918868010,0.20481,2444.0,2442.8,0.16588529]
[1769918868418,0.20482,2443.9,2442.8,0.16588529]
[1769918869110,0.20483,2443.8,2442.8,0.16588529]
[1769918869312,0.20483,2443.8,2442.6,0.16485249]
[1769918870214,0.20484,2443.7,2442.6,0.16485249]
[1769918870711,0.20901427,2444.2,2442.8,0.16485249]
[1769918870913,2.402,2444.1,2442.9,0.16485249]
[1769918873313,2.402,2444.1,2443.0,0.16626288]
[1769918874217,2.402,2444.1,2443.0,2.60486933]
[1769918874418,2.402,2444.1,2443.1,0.16626288]
[1769918875016,2.402,2444.1,2443.2,0.16626288]
[1769918875613,0.00421427,2444.2,2443.2,0.16626288]
[1769918875819,0.00421427,2444.2,2443.3,6.78949453]
[1769918876122,0.00421427,2444.2,2443.5,0.16626465]
[1769918879125,0.00421427,2444.2,2443.3,2.60493132]
[1769918879322,0.00421427,2444.2,2443.3,0.16632487]
[1769918880225,0.00421427,2444.2,2443.2,2.43860645]
[1769918880428,0.00421427,2444.2,2443.1,2.60493132]
[1769918880724,0.20481,2444.1,2443.1,0.16632487]
[1769918881025,0.20481,2444.0,2442.9,0.16632487]
[1769918882514,0.00421427,2444.2,2442.9,0.16632487]
[1769918882515,0.20482,2443.9,2442.9,0.16632487]
[1769918883425,2.402,2444.0,2443.1,0.1661481]
[1769918883719,2.402,2444.1,2443.3,0.1661481]
[1769918888126,2.402,2444.1,2443.4,0.16553249]
[1769918889722,2.402,2444.1,2443.6,0.16541566]
[1769918890428,4.06585277,2444.2,2443.6,0.16541566]
[1769918891326,3.41708626,2444.2,2443.6,2.43860645]
[1769918892321,3.41708626,2444.2,2443.5,2.43860645]
[1769918892520,3.41708626,2444.2,2443.6,4.05511301]
[1769918892719,3.41708626,2444.2,2443.5,2.43860645]
[1769918893024,0.16116317,2444.1,2443.5,2.43860645]
[1769918893328,0.16116317,2444.1,2443.4,6.49303933]
[1769918893529,0.16116317,2444.1,2443.5,4.05443288]
[1769918893731,0.16116317,2444.1,2443.5,4.05534929]
[1769918894126,0.16116317,2444.1,2443.4,4.05578692]
[1769918894325,0.16116317,2444.1,2443.3,2.43860645]
[1769918896429,0.16116317,2444.1,2443.3,6.46905433]
[1769918896627,0.16116317,2444.1,2443.3,2.43860645]
[1769918896828,0.16116317,2444.1,2443.3,6.46905433]
[1769918897027,0.16116317,2444.1,2443.2,6.46905433]
[1769918897227,0.16116317,2444.1,2443.2,2.43860645]
[1769918897627,0.16116317,2444.1,2443.2,6.46733329]
[1769918897832,0.16116317,2444.1,2443.1,6.46733329]
[1769918898028,0.16116317,2444.1,2443.2,4.02872684]
[1769918898233,0.16116317,2444.1,2443.1,2.43860645]
[1769918899132,0.16116317,2444.1,2443.1,6.46836551]
[1769918899334,0.16116317,2444.1,2443.1,2.43860645]
[1769918899936,0.16116317,2444.1,2443.0,6.42251367]
[1769918900137,0.16116317,2444.1,2442.9,2.43860645]
[1769918900338,0.16116317,2444.1,2442.8,2.43860645]
[1769918900537,0.16116317,2444.1,2442.8,3.98679776]
[1769918900937,0.16164345,2444.0,2442.7,2.43860645]
[1769918901140,0.16169598,2443.9,2442.9,2.43860645]
[1769918901345,0.16169598,2443.9,2443.0,3.96430651]
[1769918902245,0.16169598,2443.9,2442.9,2.43860645]
[1769918902444,0.16169598,2443.9,2443.0,3.96410111]
[1769918902745,0.16169598,2443.9,2443.0,2.43860645]
[1769918902945,0.16169598,2443.9,2442.9,2.43860645]
[1769918903244,0.16169598,2443.9,2443.0,3.96201336]
[1769918903443,0.16169598,2443.9,2443.0,3.96080312]
[1769918904247,0.16169598,2443.9,2442.9,2.43860645]
[1769918904547,0.16169598,2443.9,2443.0,3.96100629]
[1769918904746,0.16169598,2443.9,2442.9,2.43860645]
[1769918906047,0.16169598,2443.9,2442.9,6.35195835]
[1769918906447,0.16169598,2443.9,2442.9,2.43860645]
[1769918906647,0.16169598,2443.9,2442.9,6.35195835]
[1769918906945,0.16169598,2443.9,2442.9,2.43860645]
[1769918907248,0.16169598,2443.9,2442.9,6.35195835]
[1769918907546,0.16169598,2443.9,2442.9,2.43860645]
[1769918907746,0.16169598,2443.9,2442.9,6.35195835]
[1769918907948,0.16169598,2443.9,2442.9,2.43860645]
[1769918908149,0.16169598,2443.9,2442.9,6.35195835]
[1769918909446,0.16169598,2443.9,2442.9,2.43860645]
[1769918909645,0.16169598,2443.9,2442.9,6.35195835]
[1769918909939,0.16169598,2443.9,2442.9,2.43860645]
[1769918910140,0.16169598,2443.9,2442.9,6.35195835]
[1769918910351,0.16169598,2443.9,2442.9,2.43860645]
[1769918910546,0.16169598,2443.9,2442.9,6.35195835]
[1769918910941,0.16169598,2443.9,2442.7,6.35195835]
[1769918911146,0.16169598,2443.9,2442.8,3.9133519]
[1769918912156,0.16541727,2443.6,2442.7,3.91795622]
[1769918912349,0.16541727,2443.6,2442.6,2.43860645]
[1769918913353,0.16541727,2443.6,2442.6,3.91816214]
[1769918914352,0.16541727,2443.6,2442.5,6.3284732]
[1769918916357,0.16541727,2443.6,2442.5,0.00422329]
[1769918920162,0.37026727,2443.6,2442.5,0.00422329]
[1769918920355,0.16726012,2443.5,2442.5,0.00422329]
[1769918921460,0.37212012,2443.5,2442.5,0.00422329]
[1769918921661,0.16727854,2443.4,2442.5,0.00422329]
[1769918923466,0.37213854,2443.4,2442.5,0.00422329]
[1769918923658,0.16723454,2443.2,2441.7,6.32424991]
[1769918923858,0.16723454,2443.0,2441.7,2.43860645]
[1769918924461,0.16723454,2442.9,2441.6,2.43860645]
[1769918924761,0.16723454,2442.9,2441.6,0.00379863]
[1769918927657,0.16706443,2442.2,2441.6,0.00379863]
[1769918927859,0.17074119,2442.2,2441.6,0.00379863]
[1769918928062,0.00367676,2442.2,2441.6,0.00379863]
[1769918931866,0.00367676,2442.2,2441.6,1.71465866]
[1769918932068,0.00367676,2442.2,2441.6,0.00379863]
[1769918933358,0.16725716,2442.9,2441.6,1.71465866]
[1769918933666,0.16725716,2442.9,2441.7,2.43860645]
[1769918934461,0.17018371,2442.9,2441.7,2.43860645]
[1769918937172,0.17018371,2442.9,2441.7,3.31495204]
[1769918937370,0.17018371,2442.9,2441.8,2.43860645]
[1769918938668,0.17018371,2442.9,2441.7,3.31495204]
[1769918939272,0.17018371,2442.9,2441.8,2.43860645]
[1769918943574,0.17018371,2442.9,2441.7,2.43860645]
[1769918943976,0.17018371,2442.9,2441.8,2.43860645]
[1769918945679,0.17386047,2442.9,2441.8,2.43860645]
[1769918946876,0.00292655,2442.9,2441.9,4.14946648]
[1769918947278,0.00292655,2442.9,2442.0,2.64358645]
[1769918947479,0.00292655,2442.9,2442.2,2.43860645]
[1769918947871,0.00292655,2442.9,2442.3,2.43860645]
[1769918948277,0.00292655,2442.9,2442.2,3.88564346]
[1769918948278,0.00292655,2442.9,2442.2,2.43860645]
[1769918948475,0.00292655,2442.9,2442.4,2.43860645]
[1769918948674,0.1680376,2443.5,2442.4,2.43860645]
[1769918948975,2.5710376,2443.7,2442.4,2.43860645]
[1769918949275,2.57471436,2443.7,2442.4,2.43860645]
[1769918949479,0.17418605,2443.6,2442.4,2.43860645]
[1769918949677,0.17775364,2443.6,2442.4,2.43860645]
[1769918950870,0.00724435,2443.6,2442.4,2.43860645]
[1769918951074,0.00356759,2443.6,2442.4,3.51990204]
[1769918951377,0.00356759,2443.6,2442.5,2.43860645]
[1769918951875,0.00356759,2443.6,2442.6,0.20493]
[1769918952077,0.00356759,2443.6,2442.7,2.43860645]
[1769918952278,0.00367676,2443.5,2442.5,2.43860645]
[1769918952478,0.17101547,2443.4,2442.5,2.43860645]
[1769918952671,0.17469223,2443.4,2442.4,3.31495204]
[1769918952870,0.17101547,2443.4,2442.4,3.31495204]
[1769918953382,0.1744794,2443.6,2442.4,3.31495204]
[1769918953583,0.00367676,2443.5,2442.4,3.31495204]
[1769918955479,0.1744794,2443.6,2442.4,3.31495204]
[1769918955685,0.00367676,2443.5,2442.4,3.31495204]
[1769918956284,0.17450137,2443.5,2442.4,3.31495204]
[1769918957284,0.17451974,2443.2,2442.4,0.87634559]
[1769918957486,0.17084298,2443.2,2442.4,0.87634559]
[1769918957785,0.00367676,2443.1,2442.3,6.65495204]
[1769918958985,0.00367676,2442.9,2442.3,3.34]
[1769918959186,0.00367676,2442.9,2442.1,6.53560645]
[1769918959187,0.00367676,2442.7,2442.1,6.53560645]
[1769918959380,0.00367676,2442.7,2442.1,4.097]
[1769918959585,0.00367676,2442.6,2442.1,4.097]
[1769918959791,0.00367676,2442.8,2442.1,4.097]
[1769918960191,0.00367676,2442.5,2442.1,4.097]
[1769918960489,0.17085548,2442.7,2442.1,4.097]
[1769918960688,0.00367676,2442.4,2442.1,4.097]
[1769918960882,0.17085548,2442.6,2441.8,2.43860645]
[1769918961192,0.17085548,2442.6,2441.7,2.64360645]
[1769918961490,0.00367676,2442.4,2441.7,2.64360645]
[1769918961889,0.00367676,2442.3,2441.7,2.64360645]
[1769918962081,0.00367676,2442.4,2441.7,2.64360645]
[1769918962282,0.00367676,2442.4,2441.8,2.43860645]
[1769918962485,0.00367676,2442.3,2441.8,2.43860645]
[1769918963098,0.17221321,2443.4,2442.1,2.43860645]
[1769918963394,0.17221321,2443.4,2442.0,2.43860645]
[1769918963595,0.17212197,2443.2,2441.8,2.43860645]
[1769918967099,0.17284924,2443.1,2441.8,2.43860645]
[1769918968497,0.17284924,2443.1,2441.7,2.43860645]
[1769918970496,0.17284924,2443.1,2441.8,2.43860645]
[1769918970701,7.31708915,2443.6,2442.0,2.43860645]
[1769918970702,0.17260618,2443.3,2442.0,2.43860645]
[1769918970903,0.17260618,2443.3,2442.1,2.43860645]
[1769918971102,0.17260618,2443.3,2442.2,2.43860645]
[1769918972101,0.17260618,2443.3,2442.1,2.43860645]
[1769918975414,0.17260618,2443.3,2442.2,2.43860645]
[1769918981114,0.17838708,2443.6,2442.4,2.43860645]
[1769918982718,0.17482188,2443.5,2442.4,2.43860645]
[1769918986221,36.9303298,2443.5,2442.4,2.43860645]
[1769918988823,36.9303298,2443.5,2442.4,2.64354645]
[1769918989117,0.00356759,2443.6,2442.8,0.20491]
[1769918989323,0.00356759,2443.6,2442.8,2.64351645]
[1769918991127,0.00356759,2443.6,2443.0,2.43860645]
[1769918991327,0.00356759,2443.6,2442.9,5.83560645]
[1769918997630,0.00356759,2443.6,2442.9,6.04050645]
[1769918998026,0.00356759,2443.6,2443.0,0.20489]
[1769918998231,0.17421454,2444.2,2443.1,0.20489]
[1769918999130,0.17739844,2444.2,2443.1,0.20489]
[1769918999728,14.48534296,2444.5,2443.4,0.20486]
[1769918999729,36.92948502,2444.5,2443.4,0.20486]
[1769919000025,4.89034296,2445.2,2443.7,0.35335369]
[1769919000230,4.89034296,2445.2,2443.8,0.14851369]
[1769919000832,9.59665069,2445.0,2443.8,0.15252615]
[1769919002136,0.15848158,2444.9,2443.8,0.15252615]
[1769919004340,9.59665069,2445.0,2443.9,0.14907812]
[1769919004740,0.00400298,2445.0,2444.1,0.14907812]
[1769919005242,0.15848158,2445.6,2444.4,0.14907812]
[1769919005637,0.15848158,2445.6,2444.6,0.14907812]
[1769919006137,0.00446833,2445.6,2444.6,0.14907812]
[1769919006641,0.00446833,2445.6,2444.7,0.14907812]
[1769919006834,0.15848158,2446.1,2444.8,0.14590578]
[1769919007033,0.15848158,2446.1,2444.9,0.14590578]
[1769919007235,0.15848158,2446.1,2445.0,0.1455946]
[1769919007535,4.095,2446.7,2445.2,0.1455946]
[1769919007536,0.15885553,2446.6,2445.2,0.1455946]
[1769919008041,0.16391321,2446.6,2445.2,0.1455946]
[1769919014247,0.16391321,2446.6,2444.9,3.222]
[1769919014248,0.16391321,2446.6,2445.0,0.14654831]
[1769919016354,0.15885553,2446.4,2444.6,0.35729519]
[1769919016651,0.15885553,2446.4,2444.7,0.15253519]
[1769919017244,0.15885553,2446.4,2444.6,0.20476]
[1769919017645,0.15885553,2446.4,2444.6,0.35743666]
[1769919019046,0.15885553,2446.4,2444.7,0.15267666]
[1769919019246,0.15885553,2446.4,2445.0,0.15415043]
[1769919020647,0.15885553,2446.4,2445.3,0.15415043]
[1769919020851,0.15885553,2446.1,2445.0,0.15415043]
[1769919021552,0.00505768,2446.6,2445.3,0.15415043]
[1769919021851,0.15885553,2446.5,2445.3,0.15415043]
[1769919024955,0.15885553,2446.4,2445.2,0.15331652]
[1769919026258,0.15885553,2446.4,2445.1,0.20472]
[1769919027952,0.15885553,2446.4,2445.1,0.35684186]
[1769919030656,0.15885553,2446.4,2445.3,0.15415043]
[1769919032458,0.15885553,2446.4,2445.4,0.15415043]
[1769919033456,0.15885553,2446.4,2445.5,0.15415043]
[1769919034361,0.15885553,2446.4,2445.6,0.15415043]
[1769919034563,0.15885553,2446.4,2445.6,0.1588395]
[1769919035657,0.15885553,2446.4,2445.7,0.15415043]
[1769919036554,0.16391321,2446.6,2445.8,0.15415043]
[1769919037960,0.16391321,2446.6,2445.8,3.82581596]
[1769919038161,0.15105169,2446.4,2445.7,3.67196062]
[1769919038457,0.15105169,2446.4,2445.6,0.00468907]
[1769919038652,0.15105169,2446.4,2445.3,3.67202411]
[1769919038653,0.15105169,2446.4,2445.3,6.11072169]
[1769919039658,0.15105169,2446.4,2445.3,6.11474983]
[1769919042264,0.15105169,2446.3,2445.3,3.67614338]
[1769919042759,0.15105169,2446.3,2445.4,0.15711976]
[1769919047365,0.15105169,2446.3,2445.3,6.11474983]
[1769919050171,0.14802845,2445.8,2444.9,2.43860645]
[1769919050471,0.14802845,2445.7,2444.7,2.43860645]
[1769919051273,0.14802845,2445.7,2444.7,2.44155315]
[1769919051567,0.14802845,2445.7,2444.7,0.0029467]
[1769919052264,36.93277169,2445.7,2444.7,0.0029467]
[1769919052463,0.14802845,2445.6,2444.7,0.0029467]
[1769919061275,0.14802845,2445.6,2444.7,0.16006646]
[1769919064376,0.14802845,2445.5,2444.7,0.0029467]
[1769919064576,0.14802845,2445.5,2444.3,0.15711976]
[1769919065478,0.14802845,2445.5,2444.3,0.16095819]
[1769919066479,0.14802845,2445.4,2444.3,0.16095819]
[1769919067580,0.15878169,2445.3,2444.3,0.16095819]
[1769919071283,2.60461395,2445.3,2444.3,0.16095819]
[1769919071482,0.15878169,2445.2,2444.3,0.16095819]
[1769919072576,0.15878169,2445.1,2444.3,0.16095819]
[1769919075382,2.44583226,2445.2,2444.3,0.16095819]
[1769919075582,2.44583226,2445.4,2444.5,0.14979205]
[1769919075782,2.60461395,2445.4,2444.5,0.14979205]
[1769919075987,0.15878169,2445.3,2444.5,0.14979205]
[1769919076189,2.60461395,2445.3,2444.5,0.14979205]
[1769919076390,0.15878169,2445.2,2444.5,0.14979205]
[1769919076587,2.60461395,2445.2,2444.3,0.00383843]
[1769919076791,0.15878169,2445.1,2444.3,0.00383843]
[1769919077480,0.15878169,2445.0,2444.3,0.00383843]
[1769919078588,2.60461395,2445.0,2444.3,0.00383843]
[1769919079093,0.15878169,2445.0,2444.3,0.00383843]
[1769919079387,2.60461395,2445.0,2444.3,0.00383843]
[1769919080191,2.44583226,2445.0,2444.3,0.15363048]
[1769919080390,2.44583226,2445.1,2444.5,0.14979205]
[1769919080593,2.44583226,2445.2,2444.5,0.14979205]
[1769919081391,2.44583226,2445.1,2444.5,0.14979205]
[1769919083792,2.44583226,2445.2,2444.5,0.14979205]
[1769919084490,2.44583226,2445.1,2444.5,0.14979205]
[1769919085499,9.56578169,2445.6,2444.5,2.43765787]
[1769919085697,9.56578169,2445.6,2444.6,2.43765787]
[1769919086299,0.15878169,2445.6,2444.6,2.43765787]
[1769919086494,36.94601887,2446.0,2444.9,0.20473]
[1769919086695,0.16127563,2446.0,2445.0,2.64238787]
[1769919087301,0.16127563,2446.0,2445.1,0.00301375]
[1769919087497,0.15976875,2446.2,2445.1,0.00301375]
[1769919087799,0.15976875,2446.2,2445.2,0.00301375]
[1769919087995,0.15976875,2446.2,2445.3,0.00301375]
[1769919088196,0.15976875,2446.2,2445.2,0.20471]
[1769919088596,0.15976875,2446.2,2445.2,0.20772375]
[1769919088997,0.15976875,2446.2,2445.2,0.20471]
[1769919094798,0.15976875,2446.2,2445.3,0.00317885]
[1769919098897,0.15976875,2446.2,2444.9,0.00336327]
[1769919102509,0.15976875,2446.2,2444.8,0.20474]
[1769919102806,0.15976875,2446.2,2444.8,0.20812267]
[1769919103203,0.15957857,2446.1,2444.8,0.20812267]
[1769919103804,0.15957857,2446.1,2444.9,0.00323607]
[1769919104107,0.15957857,2446.1,2445.0,0.00323607]
[1769919105702,0.15957857,2446.1,2445.1,0.0034676]
[1769919105903,0.15957857,2446.1,2445.4,0.0034676]
[1769919106098,0.15957857,2446.1,2445.4,3.0364676]
[1769919108410,0.15957857,2446.1,2445.4,3.2411676]
[1769919109312,0.15957857,2446.1,2445.1,2.43765787]
[1769919109513,0.15957857,2446.1,2445.0,6.01845017]
[1769919109808,0.15873875,2446.4,2445.4,0.0050623]
[1769919112508,0.15873875,2446.4,2445.5,0.00525384]
[1769919113004,0.00505768,2446.6,2445.7,0.00525384]
[1769919113205,36.78474324,2447.0,2445.9,0.15642537]
[1769919114206,36.7897297,2447.0,2445.9,0.15642537]
[1769919115014,0.15316932,2446.9,2445.9,0.15642537]
[1769919115214,0.15316932,2446.8,2445.9,0.15642537]
[1769919115813,0.15316932,2446.8,2446.0,0.15642537]
[1769919116117,0.15815578,2447.0,2446.1,0.15642537]
[1769919116314,0.15815578,2447.0,2446.1,0.15942559]
[1769919116515,0.15815578,2447.0,2446.3,0.15642537]
[1769919116718,0.0030693,2447.0,2446.3,0.15642537]
[1769919116918,0.0030693,2447.0,2446.3,0.36104537]
[1769919117119,0.0030693,2447.0,2446.4,0.15642537]
[1769919117320,0.15316932,2447.5,2446.8,0.15642537]
[1769919117514,0.15316932,2447.5,2446.5,3.365]
[1769919117515,0.15316932,2447.7,2446.5,2.55542537]
[1769919117715,0.15316932,2447.6,2446.5,3.364]
[1769919118222,0.15658516,2447.6,2446.5,3.364]
[1769919118724,0.15658516,2447.6,2446.6,0.15642537]
[1769919118927,36.93791256,2447.9,2446.9,0.15642537]
[1769919119223,0.15316932,2447.9,2446.9,2.60357]
[1769919119425,0.15316932,2447.9,2447.0,0.15642537]
[1769919120022,0.15697222,2447.9,2447.0,0.15642537]
[1769919120322,0.15697222,2447.9,2446.5,0.15642537]
[1769919120523,0.15316932,2447.8,2446.4,3.141]
[1769919120721,0.15316932,2447.7,2446.4,3.141]
[1769919120920,0.15316932,2447.7,2446.3,0.36104537]
[1769919121429,0.15316932,2447.6,2446.3,2.76004537]
[1769919121627,0.15316932,2447.6,2446.4,0.15642537]
[1769919122824,0.15316932,2447.6,2446.5,0.15642537]
[1769919123029,0.15697222,2447.9,2446.8,0.15642537]
[1769919124029,0.15697222,2447.9,2446.7,0.20458]
[1769919124030,0.0038029,2447.9,2446.9,0.15642537]
[1769919124622,0.15697222,2447.9,2446.9,0.15642537]
[1769919125425,0.15697222,2447.9,2447.0,0.20456]
[1769919125621,0.15697222,2447.9,2447.1,2.399]
[1769919126134,0.15697222,2447.9,2446.9,0.15642537]
[1769919127131,0.15697222,2447.9,2446.9,2.55542537]
[1769919127624,7.83102747,2448.8,2446.9,2.55542537]
[1769919127625,1.83833178,2448.8,2447.0,4.097]
[1769919127826,0.16121541,2449.7,2448.4,1.7058959]
[1769919128022,0.16121541,2449.7,2447.6,3.67202411]
[1769919128023,12.0,2450.4,2448.3,0.36121987]
[1769919128226,11.46868615,2450.4,2448.5,0.20444]
[1769919128424,7.50704469,2450.3,2448.7,0.36117987]
[1769919128630,7.50704469,2449.8,2448.8,0.63861088]
[1769919128821,0.0047674,2450.3,2448.9,0.63861088]
[1769919128822,7.50704469,2449.6,2448.9,0.63861088]
[1769919129029,18.97573084,2450.2,2449.0,0.79538075]
[1769919129224,7.50704469,2450.1,2449.1,0.79538075]
[1769919129422,11.46868615,2450.2,2449.3,0.15676987]
[1769919129626,11.46868615,2450.2,2449.4,0.63861088]
[1769919129935,0.0047674,2450.3,2449.6,0.15676987]
[1769919130128,11.47345355,2450.3,2449.7,0.63861088]
[1769919130329,11.47345355,2450.3,2449.8,0.63861088]
[1769919130532,11.47345355,2450.3,2449.9,0.63861088]
[1769919130828,0.14696658,2450.2,2450.0,0.63861088]
[1769919131033,0.16121541,2453.1,2450.4,0.20427]
[1769919131331,0.16121541,2451.9,2450.5,2.398]
[1769919131532,0.16121541,2451.9,2450.6,0.20426]
[1769919131927,0.16121541,2451.9,2450.6,0.20852606]
[1769919132129,0.16279054,2451.7,2450.6,0.20852606]
[1769919132331,0.16279054,2451.7,2450.7,2.398]
[1769919132530,7.14127267,2451.6,2450.7,2.398]
[1769919133030,3.451,2453.3,2450.7,2.398]
[1769919133232,0.52595597,2455.4,2452.5,0.15676987]
[1769919133534,5.45987267,2455.3,2452.7,0.15676987]
[1769919133733,2.397,2455.2,2452.8,2.55376987]
[1769919133934,4.0784,2454.9,2452.8,2.397]
[1769919134234,4.0784,2454.5,2452.8,2.40002394]
[1769919134433,4.0784,2454.3,2452.8,2.40002394]
[1769919134834,4.0784,2454.0,2452.8,2.40002394]
[1769919135032,4.0784,2454.0,2452.8,0.00302394]
[1769919135227,0.14696658,2453.5,2452.8,0.00302394]
[1769919135431,0.14696658,2453.8,2452.8,0.00302394]
[1769919135730,0.14696658,2453.6,2452.8,0.00302394]
[1769919135935,0.14696658,2453.4,2452.8,0.00302394]
[1769919136131,0.14696658,2453.2,2452.8,0.00302394]
[1769919136637,7.28823925,2453.2,2452.8,0.00302394]
[1769919136937,0.14696658,2453.5,2452.8,0.00302394]
[1769919137135,0.14696658,2453.8,2452.8,0.15979381]
[1769919137331,0.14696658,2453.8,2452.9,2.396]
[1769919137533,2.40015259,2454.9,2452.8,0.00302394]
[1769919137534,0.14696658,2453.6,2452.8,0.00302394]
[1769919137943,0.14696658,2453.4,2452.8,0.00302394]
[1769919138439,0.14696658,2454.6,2452.8,0.00302394]
[1769919138738,0.14696658,2453.9,2452.8,0.15979381]
[1769919139237,0.14696658,2454.2,2452.8,0.15979381]
[1769919139834,0.14696658,2454.0,2452.8,0.15979381]
[1769919140037,0.14696658,2454.0,2452.8,0.00302394]
[1769919140239,0.14696658,2453.6,2452.8,0.00302394]
[1769919140642,0.14696658,2453.4,2452.8,0.00302394]
[1769919141134,4.22536658,2453.4,2452.8,0.00302394]
[1769919142137,0.14696658,2453.2,2452.2,0.15676987]
[1769919142539,0.14696658,2453.0,2452.0,0.20414]
[1769919142840,0.14696658,2453.8,2452.5,0.15676987]
[1769919143343,3.20983925,2453.7,2452.7,0.15676987]
[1769919143545,0.14696658,2453.6,2452.7,2.55076987]
[1769919143940,0.00354486,2453.8,2452.8,0.15676987]
[1769919144145,3.06287267,2453.7,2452.8,0.15676987]
[1769919145746,3.06287267,2453.6,2452.8,0.15676987]
[1769919147744,0.14696658,2453.7,2452.8,0.15676987]
[1769919147949,3.06287267,2453.7,2452.9,0.15676987]
[1769919148747,3.06287267,2453.7,2452.9,2.54976987]
[1769919149148,0.14696658,2453.6,2452.8,0.84156242]
[1769919149342,0.14696658,2453.6,2452.8,0.20408]
[1769919149948,0.00354486,2453.8,2452.8,0.20408]
[1769919149949,3.20983925,2453.5,2452.8,0.20408]
[1769919150150,0.14696658,2453.4,2452.6,0.79425229]
[1769919150351,0.14696658,2453.3,2452.5,4.08286341]
[1769919150646,0.14696658,2453.3,2452.5,0.00286341]
[1769919150851,7.28823925,2453.2,2452.5,0.00286341]
[1769919151047,4.22536658,2453.2,2452.5,0.00286341]
[1769919151443,0.00354486,2453.8,2452.9,0.15676987]
[1769919151952,4.0784,2453.7,2452.9,0.15676987]
[1769919152946,0.00354486,2453.8,2453.3,0.20403]
[1769919153153,0.15051144,2453.8,2453.3,0.20403]
[1769919153455,4.22536658,2453.7,2453.3,0.20403]
[1769919153653,4.08194486,2453.8,2453.3,0.20403]